bitfinex-derivatives/quotes_ETHF0:USTF0_20250923
["timestamp","ask_amount","ask_price","bid_price","bid_amount"]
[1758636865113,0.1234,4195.5,4194.1,0.288]
[1758636865114,0.1234,4195.0,4194.2,0.249]
[1758636865310,0.1234,4195.0,4194.8,0.42879]
[1758636865512,0.3261,4194.9,4194.8,0.42879]
[1758636868523,0.3261,4195.4,4195.3,0.42874]
[1758636869424,0.3261,4195.4,4195.3,0.71674]
[1758636869920,0.3261,4195.4,4195.3,0.42874]
[1758636870117,0.3261,4195.4,4195.3,0.71674]
[1758636870323,0.4608,4196.0,4195.9,0.42869]
[1758636871922,0.3261,4195.9,4195.8,0.42869]
[1758636872316,0.3261,4195.9,4195.2,0.249]
[1758636872511,0.1347,4196.0,4195.7,0.42871]
[1758636872718,0.1347,4196.0,4195.9,0.42869]
[1758636873427,0.4608,4196.0,4195.9,0.42869]
[1758636874124,0.4608,4196.0,4195.2,0.249]
[1758636874318,0.1234,4195.5,4194.8,1.07199]
[1758636874523,0.4495,4195.5,4195.4,0.42874]
[1758636874922,0.3261,4194.9,4194.8,0.4288]
[1758636875128,0.1234,4195.0,4194.5,0.42883]
[1758636875324,0.3261,4194.9,4194.8,0.4288]
[1758636876326,0.1234,4195.5,4195.4,0.42874]
[1758636876837,0.75485,4195.3,4194.9,0.288]
[1758636877122,0.3261,4195.2,4195.1,0.42877]
[1758636878334,0.42875,4195.3,4194.6,0.537]
[1758636878522,0.1234,4195.5,4195.2,0.42875]
[1758636878827,0.3261,4195.4,4195.3,0.42875]
[1758636879229,0.75484,4195.4,4195.2,0.42876]
[1758636879537,0.1347,4196.5,4196.1,0.42866]
[1758636879828,0.1347,4196.5,4195.8,0.42869]
[1758636879829,0.1234,4196.0,4195.8,0.42869]
[1758636880023,0.4495,4196.0,4195.9,0.42869]
[1758636882928,0.3261,4196.0,4195.9,0.42869]
[1758636883234,0.4608,4196.5,4196.4,0.42863]
[1758636883424,0.3261,4196.5,4196.4,0.42863]
[1758636883625,0.4495,4197.0,4196.9,0.42858]
[1758636884232,0.4495,4197.5,4197.4,0.42853]
[1758636885229,0.3261,4197.9,4197.6,0.42851]
[1758636885426,0.3,4198.0,4197.5,1.07131]
[1758636885624,0.3261,4197.9,4197.8,0.42849]
[1758636886527,0.4234,4198.0,4197.4,0.67753]
[1758636886732,0.4234,4198.0,4197.3,0.288]
[1758636886935,0.3261,4197.9,4197.8,0.42849]
[1758636887930,0.3,4198.0,4197.9,0.288]
[1758636888129,0.6261,4198.0,4197.9,0.288]
[1758636888328,0.3,4198.0,4197.9,0.288]
[1758636891221,0.6261,4198.0,4197.9,0.288]
[1758636891635,0.3,4198.0,4197.9,0.288]
[1758636892038,0.3261,4197.9,4197.8,0.42849]
[1758636892733,0.3,4198.0,4197.9,0.288]
[1758636893327,0.3261,4198.7,4198.3,1.07111]
[1758636893536,0.3356,4198.9,4198.8,0.42839]
[1758636893730,0.3356,4198.9,4198.0,0.288]
[1758636893932,0.42836,4199.2,4198.7,0.42839]
[1758636894133,0.3356,4198.9,4198.8,0.42839]
[1758636895930,0.3356,4199.4,4199.2,0.42835]
[1758636896140,0.3356,4199.4,4199.3,0.42834]
[1758636899642,0.1234,4200.0,4199.9,0.42828]
[1758636899940,0.1288,4199.5,4199.3,0.42834]
[1758636900442,0.3356,4199.4,4199.3,0.42834]
[1758636901039,0.3356,4199.9,4199.4,0.71633]
[1758636901237,0.459,4200.0,4199.9,0.42828]
[1758636901744,0.3356,4200.0,4199.9,0.71628]
[1758636902135,0.55162,4200.5,4199.9,0.288]
[1758636902337,0.459,4200.5,4199.0,0.0604]
[1758636902632,0.459,4200.5,4200.4,0.42823]
[1758636902835,0.1288,4200.0,4199.1,0.288]
[1758636903038,0.4644,4199.5,4199.4,0.42832]
[1758636903443,0.4644,4199.5,4198.6,0.288]
[1758636903444,0.76393,4199.4,4198.6,0.288]
[1758636903635,0.3356,4199.4,4198.5,0.18873353]
[1758636903838,0.3356,4199.4,4198.6,0.249]
[1758636904042,0.3356,4199.4,4199.3,0.42833]
[1758636904444,1.40644,4199.4,4198.6,0.249]
[1758636904746,0.42843,4198.5,4198.0,0.42847]
[1758636904942,0.3356,4198.4,4198.2,0.42845]
[1758636905142,0.3356,4198.4,4197.8,0.249]
[1758636905143,0.3356,4198.4,4198.0,0.71646]
[1758636905339,0.3356,4198.2,4197.9,0.67748]
[1758636905545,0.3356,4198.9,4198.2,0.288]
[1758636905843,0.1288,4199.0,4197.5,0.1214]
[1758636905844,0.1288,4198.5,4197.5,0.4094]
[1758636906049,0.1288,4198.5,4197.6,0.249]
[1758636906050,0.76403,4198.4,4197.6,0.249]
[1758636906245,0.1288,4198.5,4198.2,0.42845]
[1758636906547,0.3356,4198.4,4197.8,0.288]
[1758636906743,0.3356,4198.4,4198.2,0.71644]
[1758636906945,0.42845,4198.2,4197.6,0.4285]
[1758636907149,0.3356,4197.9,4197.6,0.154]
[1758636907447,0.3356,4197.9,4197.8,0.42849]
[1758636907946,0.1288,4198.5,4198.3,0.42844]
[1758636907947,0.3356,4198.4,4198.3,0.42844]
[1758636908150,0.3356,4198.4,4198.2,0.42845]
[1758636908348,0.3356,4198.4,4198.3,0.42843]
[1758636908550,0.3356,4198.4,4198.3,0.71643]
[1758636909051,0.3356,4198.4,4197.5,0.19154506]
[1758636909245,0.42844,4198.3,4197.8,0.42849]
[1758636909452,0.3356,4197.9,4197.8,0.42849]
[1758636909852,0.55722,4198.5,4198.0,0.42847]
[1758636910041,0.3356,4198.4,4196.6,1.07153]
[1758636910239,0.42854,4197.4,4196.7,0.288]
[1758636910451,0.1288,4198.0,4196.7,0.4286]
[1758636910452,0.1288,4197.5,4196.7,0.4286]
[1758636910653,0.1288,4197.5,4196.4,0.1890245]
[1758636910654,0.1288,4197.0,4196.8,0.42859]
[1758636910855,0.3356,4196.9,4196.8,0.42859]
[1758636911255,0.3356,4196.9,4196.4,0.217]
[1758636911256,0.3179,4196.9,4196.4,0.217]
[1758636911453,0.55738,4197.0,4195.6,1.07178]
[1758636911454,0.3179,4196.4,4195.8,0.42869]
[1758636911647,0.3179,4196.4,4196.0,0.222]
[1758636911956,0.3179,4196.4,4196.3,0.42864]
[1758636912255,0.3179,4196.4,4196.3,0.71684]
[1758636913152,0.4467,4197.0,4196.9,0.42858]
[1758636914255,0.3179,4197.4,4197.1,0.42856]
[1758636914457,0.1288,4197.5,4197.2,0.42855]
[1758636914953,0.3179,4197.4,4197.0,0.42857]
[1758636915144,0.3179,4197.4,4197.2,0.42855]
[1758636915349,0.3179,4197.4,4197.2,0.71675]
[1758636915753,0.1288,4197.5,4197.4,0.42853]
[1758636915955,0.1288,4197.5,4196.4,1.07159]
[1758636915956,0.123,4197.0,4196.4,1.07159]
[1758636916167,0.123,4197.0,4196.6,1.07154]
[1758636916363,0.3179,4196.9,4196.7,0.2882]
[1758636916667,0.42854,4197.3,4196.7,0.2882]
[1758636916963,0.4409,4197.0,4196.9,0.42858]
[1758636917768,0.3179,4196.4,4195.6,0.2882]
[1758636918067,0.55163,4196.5,4196.2,0.42865]
[1758636918470,0.3179,4196.4,4196.2,0.42865]
[1758636918672,0.3179,4196.4,4196.3,0.42864]
[1758636918961,0.3179,4195.8,4195.2,0.2882]
[1758636919167,0.3179,4195.8,4194.5,1.73499176]
[1758636919168,0.42874,4195.4,4194.9,0.42878]
[1758636919357,0.42874,4195.4,4194.3,1.36032]
[1758636919358,0.3179,4195.4,4194.4,0.19295106]
[1758636919566,0.3179,4194.9,4194.8,0.42879]
[1758636919871,0.3179,4195.4,4194.8,0.2882]
[1758636920169,0.123,4195.5,4194.7,0.249]
[1758636920373,0.3179,4195.4,4195.3,0.42874]
[1758636920756,0.74664,4195.4,4194.7,0.5372]
[1758636920956,0.123,4195.5,4195.1,0.42876]
[1758636921163,0.3179,4195.4,4195.3,0.42874]
[1758636922261,0.3179,4195.9,4195.8,0.42869]
[1758636922963,0.123,4196.0,4195.3,0.2882]
[1758636923169,0.123,4196.0,4195.0,1.13233]
[1758636923170,0.3071,4195.9,4195.2,0.249]
[1758636923472,0.123,4196.0,4195.7,0.4287]
[1758636923669,0.1336,4195.5,4195.3,0.42875]
[1758636923866,0.3071,4195.4,4195.3,0.42875]
[1758636924070,0.3071,4195.4,4194.9,0.249]
[1758636924261,0.3071,4195.4,4195.3,0.42874]
[1758636925272,0.123,4196.0,4195.8,0.42869]
[1758636925466,0.3071,4195.9,4195.8,0.42869]
[1758636927676,0.3071,4196.4,4196.2,0.42865]
[1758636927865,0.55163,4196.5,4196.3,0.42864]
[1758636928065,0.3071,4196.4,4196.3,0.42864]
[1758636928566,0.3071,4196.4,4196.3,0.71664]
[1758636928766,0.42855,4197.2,4196.5,1.07155]
[1758636928963,0.42854,4197.4,4196.9,0.42858]
[1758636929169,0.56212,4197.5,4196.9,0.42858]
[1758636929369,0.42853,4197.4,4196.9,0.42858]
[1758636929664,0.4301,4197.0,4196.9,0.42858]
[1758636929867,0.123,4197.0,4196.8,0.42859]
[1758636930166,0.3071,4196.9,4196.8,0.42859]
[1758636930867,0.3071,4197.4,4197.3,0.42854]
[1758636931074,0.56218,4197.0,4196.7,0.249]
[1758636931276,0.42864,4196.4,4195.7,0.288]
[1758636931475,0.1336,4196.0,4195.5,0.249]
[1758636931677,0.3071,4195.9,4195.8,0.42869]
[1758636931975,0.1336,4196.0,4195.3,0.537]
[1758636932161,0.4407,4196.0,4195.3,0.537]
[1758636932362,0.4407,4196.0,4195.9,0.42869]
[1758636932579,0.1336,4196.0,4195.7,0.4287]
[1758636932766,0.3071,4195.9,4195.7,0.42871]
[1758636932971,0.56228,4196.0,4195.7,0.42871]
[1758636933470,0.1336,4196.0,4195.7,0.42871]
[1758636933674,0.1336,4196.0,4195.8,0.42869]
[1758636933675,0.3071,4195.9,4195.8,0.42869]
[1758636933875,0.3071,4195.6,4195.0,0.19451172]
[1758636934177,0.56233,4195.5,4194.6,0.249]
[1758636934375,0.3071,4195.4,4194.6,0.249]
[1758636934669,0.3071,4195.4,4195.3,0.42874]
[1758636935066,0.3071,4195.4,4195.3,0.71674]
[1758636935374,0.3071,4195.4,4194.7,0.19188806]
[1758636935564,0.3071,4195.4,4195.2,0.42875]
[1758636935770,0.3071,4195.7,4195.3,0.42874]
[1758636935970,0.3071,4195.9,4195.0,1.07195]
[1758636936165,0.1336,4196.0,4195.7,0.4287]
[1758636936373,0.3071,4195.9,4195.5,0.42872]
[1758636936578,0.3071,4195.9,4195.3,0.224]
[1758636936871,0.1336,4195.5,4195.0,0.288]
[1758636937076,0.3071,4195.4,4195.1,0.42876]
[1758636937577,0.56233,4195.5,4195.1,0.42876]
[1758636937768,0.3071,4195.3,4195.1,0.42876]
[1758636937969,0.42875,4195.3,4194.9,0.42878]
[1758636938274,0.4407,4195.0,4194.5,0.288]
[1758636938479,0.1336,4195.0,4194.8,0.42879]
[1758636938679,0.3071,4194.9,4194.8,0.42879]
[1758636938974,0.3071,4194.9,4194.1,1.07218]
[1758636938975,0.3071,4194.9,4194.2,0.249]
[1758636939166,0.56239,4195.0,4194.6,0.42882]
[1758636939367,0.56239,4195.0,4194.7,0.42881]
[1758636939576,0.1336,4194.5,4194.2,0.42885]
[1758636939781,0.3071,4194.4,4194.3,0.42884]
[1758636940166,0.1336,4195.0,4194.8,0.42879]
[1758636940372,0.3071,4194.9,4194.8,0.42879]
[1758636941372,0.1336,4195.5,4195.3,0.42874]
[1758636941373,0.3071,4195.4,4195.3,0.42874]
[1758636943182,0.4407,4196.0,4195.9,0.42869]
[1758636943474,0.3071,4195.9,4195.7,0.4287]
[1758636943673,0.1336,4196.0,4195.8,0.42869]
[1758636943869,0.3071,4195.9,4195.8,0.42869]
[1758636944478,0.1336,4196.0,4194.9,1.07197]
[1758636944676,0.42871,4195.7,4195.0,0.42877]
[1758636944871,0.3071,4195.8,4194.8,0.537]
[1758636944872,0.4287,4195.8,4194.8,0.537]
[1758636945073,0.1336,4195.5,4195.3,0.42875]
[1758636945272,0.3071,4195.4,4195.3,0.42875]
[1758636945470,0.3071,4195.4,4194.8,0.42879]
[1758636945670,0.3071,4194.9,4194.8,0.42879]
[1758636945872,0.3071,4194.9,4194.1,1.07218]
[1758636946067,0.3071,4194.9,4194.8,0.4288]
[1758636946269,0.3071,4194.9,4194.7,0.4288]
[1758636946477,0.3071,4194.9,4194.8,0.4288]
[1758636946779,0.3071,4194.9,4194.1,0.249]
[1758636946780,0.3071,4194.9,4194.1,1.07217]
[1758636947082,0.3071,4194.9,4194.3,1.07213]
[1758636947383,0.3071,4194.9,4194.2,1.07216]
[1758636947580,0.3071,4194.9,4194.8,0.4288]
[1758636947881,0.3071,4194.4,4194.1,1.07218]
[1758636948085,0.3071,4194.4,4194.3,0.42885]
[1758636949876,0.1336,4195.0,4194.4,0.42884]
[1758636950076,0.3071,4194.9,4194.8,0.4288]
[1758636950270,0.3071,4194.9,4194.6,0.42881]
[1758636950477,0.1336,4194.5,4194.4,0.42883]
[1758636950677,0.4407,4194.5,4194.4,0.42883]
[1758636950887,0.86953,4194.5,4194.0,0.19409345]
[1758636951076,0.1336,4194.5,4194.4,0.42884]
[1758636951276,0.4407,4194.5,4194.4,0.42884]
[1758636951575,0.3071,4194.4,4194.3,0.42885]
[1758636952273,0.1336,4195.0,4194.9,0.42879]
[1758636952479,0.4407,4195.0,4194.8,0.4288]
[1758636952680,0.3071,4194.9,4194.8,0.4288]
[1758636953583,0.3095,4195.2,4194.9,0.42879]
[1758636953779,0.3095,4194.9,4194.8,0.4288]
[1758636954685,0.3095,4194.9,4194.4,1.0721]
[1758636954984,0.4417,4195.0,4194.9,0.42879]
[1758636956187,0.3095,4195.0,4194.9,0.42879]
[1758636956678,0.4417,4195.0,4194.9,0.42879]
[1758636956886,0.1322,4195.0,4194.9,0.42879]
[1758636957085,0.4417,4195.0,4194.9,0.42879]
[1758636959284,0.56098,4195.0,4194.6,0.42881]
[1758636959480,0.4288,4194.8,4194.6,0.42881]
[1758636959681,0.4417,4194.5,4194.4,0.42884]
[1758636963286,0.4417,4195.0,4194.9,0.42879]
[1758636963593,0.4417,4195.0,4194.3,1.36013]
[1758636963793,0.7546,4194.8,4194.7,0.4288]
[1758636964091,1.1834,4194.8,4194.7,0.2034]
[1758636964394,0.7546,4194.8,4194.7,0.42881]
[1758636964590,0.7546,4194.6,4194.5,0.42882]
[1758636964794,0.5325,4194.1,4194.0,1.02861233]
[1758636964991,0.3095,4194.4,4194.3,0.4108]
[1758636965188,0.1322,4195.0,4194.3,0.6988]
[1758636965392,0.1322,4195.0,4194.7,0.83961]
[1758636965393,0.3095,4194.8,4194.7,0.83961]
[1758636965690,0.1336,4196.0,4195.4,0.3327]
[1758636965884,0.3095,4196.0,4195.9,0.76139]
[1758636966084,0.3095,4196.4,4196.1,0.3327]
[1758636966283,0.3095,4196.2,4195.6,0.3327]
[1758636966490,0.3095,4196.2,4195.5,0.0602]
[1758636966695,0.1322,4196.5,4196.0,0.3327]
[1758636966886,0.3095,4196.4,4196.1,0.3327]
[1758636967188,1.38109,4196.4,4195.4,0.249]
[1758636967488,0.1322,4196.5,4195.6,0.3327]
[1758636967689,0.73815,4196.3,4195.9,0.42868]
[1758636967890,0.42866,4196.2,4195.6,0.3327]
[1758636968089,0.42871,4195.7,4195.3,0.3327]
[1758636968394,0.73823,4195.5,4195.3,0.3327]
[1758636968595,0.73823,4195.5,4194.7,1.7088106]
[1758636968596,0.3095,4195.4,4195.2,0.3327]
[1758636968787,0.42874,4195.4,4195.0,1.01048]
[1758636968987,0.42875,4195.3,4195.0,0.5817]
[1758636969190,0.42874,4195.4,4195.0,0.76148]
[1758636969392,0.42877,4195.2,4194.8,0.4288]
[1758636969590,0.3095,4195.0,4194.8,0.7615]
[1758636969793,0.3095,4195.0,4194.9,0.3327]
[1758636970391,0.3095,4195.4,4195.0,0.42877]
[1758636970591,0.42875,4195.3,4195.1,0.3327]
[1758636970801,0.3095,4195.1,4194.9,0.249]
[1758636970999,0.3095,4195.1,4194.9,0.67779]
[1758636971194,0.3095,4195.1,4195.0,0.3327]
[1758636971394,0.336,4195.4,4195.2,0.74336]
[1758636971602,0.336,4195.3,4195.0,0.42878]
[1758636971900,0.336,4195.2,4195.0,0.74338]
[1758636972194,0.76476,4195.2,4195.0,0.3146]
[1758636972493,0.4288,4194.9,4194.4,0.3146]
[1758636972699,0.336,4194.6,4194.4,0.74343]
[1758636972899,0.336,4194.5,4194.4,0.3146]
[1758636973300,0.336,4194.5,4194.4,0.5636]
[1758636973895,0.4634,4195.0,4194.4,1.6357]
[1758636974098,0.336,4194.9,4194.5,0.42882]
[1758636974400,0.336,4194.8,4194.6,0.74342]
[1758636974702,0.336,4194.9,4194.8,0.4288]
[1758636976302,0.5552,4194.9,4194.8,0.6479]
[1758636976698,5.54194355,4199.2,4194.4,1.32109]
[1758636976699,0.336,4195.6,4195.4,0.42874]
[1758636976906,0.5552,4195.6,4195.5,0.4347]
[1758636977205,0.336,4195.8,4195.6,0.42871]
[1758636977405,0.7712,4195.8,4195.7,0.86341]
[1758636977596,0.336,4195.8,4195.7,0.74331]
[1758636977906,0.4682,4196.5,4196.4,0.42863]
[1758636978505,0.336,4196.5,4196.4,0.42863]
[1758636979106,0.4286,4196.7,4196.3,0.42864]
[1758636979401,0.1274,4197.0,4196.5,0.42862]
[1758636979402,0.336,4196.8,4196.5,0.42862]
[1758636979606,0.336,4196.6,4196.4,0.42863]
[1758636979793,0.4286,4196.8,4196.0,0.3146]
[1758636979794,0.42858,4196.9,4196.0,0.3146]
[1758636980105,0.336,4196.9,4196.7,0.4286]
[1758636980304,0.55598,4197.0,4196.7,0.4286]
[1758636980500,0.336,4196.9,4196.8,0.42859]
[1758636980696,0.4634,4197.5,4197.4,0.42853]
[1758636981004,0.42842,4198.6,4198.1,0.3146]
[1758636981198,0.1274,4199.0,4198.1,0.74306]
[1758636981199,0.55582,4198.5,4198.1,0.74306]
[1758636981398,0.1274,4198.5,4197.2,1.07139]
[1758636981599,0.1274,4198.5,4198.1,0.42846]
[1758636981799,0.1274,4198.5,4198.2,0.42845]
[1758636982005,0.1274,4198.5,4198.3,0.42844]
[1758636982502,0.1274,4198.5,4197.5,0.1217]
[1758636982706,0.42845,4198.2,4197.5,0.248]
[1758636983003,0.75378,4197.9,4197.0,0.4319]
[1758636983203,0.1274,4198.0,4197.0,0.3102]
[1758636983509,0.56354,4197.9,4197.0,0.3102]
[1758636983804,0.42849,4197.8,4197.0,0.3102]
[1758636983997,0.42851,4197.7,4197.0,0.3102]
[1758636984199,0.4494,4197.5,4197.0,0.3102]
[1758636984405,0.1241,4197.5,4197.3,0.42854]
[1758636984705,0.3253,4197.4,4197.3,0.42854]
[1758636985400,0.3253,4197.4,4197.1,0.42856]
[1758636985401,0.3253,4197.3,4197.1,0.42856]
[1758636985602,0.4494,4197.0,4196.9,0.42858]
[1758636985803,0.3253,4196.9,4196.8,0.42859]
[1758636986795,0.3253,4196.9,4196.5,0.3102]
[1758636987105,0.3253,4196.6,4196.1,0.3102]
[1758636987306,0.3253,4196.7,4195.8,0.3102]
[1758636987509,0.3253,4196.7,4196.5,0.42862]
[1758636987697,0.1241,4197.0,4196.6,0.42861]
[1758636988105,0.3253,4196.9,4196.7,0.4286]
[1758636988307,0.1241,4197.0,4196.7,0.4286]
[1758636988501,0.3253,4196.9,4196.5,0.42862]
[1758636988707,0.42861,4196.7,4196.0,0.1302]
[1758636989099,0.3253,4196.6,4196.0,0.4404]
[1758636989300,0.3253,4196.2,4195.5,0.6884]
[1758636989704,0.3253,4196.2,4196.0,0.42867]
[1758636990009,0.1241,4196.5,4196.2,0.42865]
[1758636990010,0.3253,4196.4,4196.2,0.42865]
[1758636990204,0.4494,4196.5,4195.8,0.3102]
[1758636990506,0.75394,4196.4,4195.6,0.3102]
[1758636990706,0.1241,4196.5,4195.7,0.4287]
[1758636990707,0.1241,4196.0,4195.7,0.4287]
[1758636991002,0.55278,4196.0,4195.0,0.1217]
[1758636991202,0.3253,4195.9,4194.9,0.3102]
[1758636991400,0.42875,4195.3,4194.8,0.42879]
[1758636991703,0.3253,4194.6,4194.0,0.1302]
[1758636991897,0.3253,4194.7,4193.6,0.3102]
[1758636992093,0.42885,4194.4,4193.8,0.4289]
[1758636992297,0.3253,4194.3,4193.8,0.4289]
[1758636992600,0.1241,4194.5,4194.1,0.3102]
[1758636992895,0.3253,4194.4,4194.1,0.73907]
[1758636993103,0.1241,4194.5,4194.2,0.42886]
[1758636993406,0.1241,4194.5,4193.5,0.1302]
[1758636993407,0.3253,4194.3,4194.0,0.42887]
[1758636993608,0.3253,4194.4,4194.1,0.42887]
[1758636993800,0.1241,4194.5,4194.1,0.42887]
[1758636994003,0.1241,4194.5,4194.0,0.3102]
[1758636994206,0.1241,4194.5,4193.5,0.1302]
[1758636994207,0.3253,4194.4,4194.1,0.42887]
[1758636994500,0.3253,4194.4,4193.6,0.3102]
[1758636994701,0.1241,4194.5,4194.3,0.42884]
[1758636994905,0.3253,4194.4,4194.3,0.42884]
[1758636995108,0.3253,4194.4,4193.8,0.3102]
[1758636995608,0.3253,4194.4,4193.9,0.42888]
[1758636995901,0.3253,4194.4,4193.8,0.3102]
[1758636995902,0.3253,4194.4,4194.2,0.42885]
[1758636996405,0.3253,4194.9,4194.0,0.1302]
[1758636996705,0.3253,4194.9,4194.1,0.3102]
[1758636996903,0.1241,4196.0,4195.0,0.42878]
[1758636997106,0.1241,4196.0,4194.6,0.42882]
[1758636997107,0.42879,4195.0,4194.6,0.42882]
[1758636997300,0.3253,4194.8,4194.6,0.42882]
[1758636997699,0.3253,4194.9,4194.7,0.4288]
[1758636997901,0.1241,4195.0,4194.7,0.4288]
[1758636997902,0.4494,4195.0,4194.7,0.4288]
[1758636998105,0.55288,4195.0,4194.8,0.4288]
[1758636998408,0.3253,4194.9,4194.8,0.4288]
[1758636998604,0.248,4195.9,4195.0,0.42877]
[1758636998908,0.248,4195.9,4194.1,1.07218]
[1758636998909,0.3253,4195.2,4194.5,0.3102]
[1758636999111,0.1241,4195.0,4194.5,0.3102]
[1758636999407,0.3253,4194.9,4194.4,1.0721]
[1758636999602,0.1241,4195.0,4194.4,1.0721]
[1758636999803,0.3253,4194.9,4194.6,0.42881]
[1758637000009,0.3253,4194.9,4194.8,0.4288]
[1758637000199,0.1241,4195.0,4194.3,0.42884]
[1758637000399,0.1241,4194.5,4194.3,0.42884]
[1758637000709,0.1241,4194.5,4193.8,0.4289]
[1758637000710,0.3253,4193.9,4193.8,0.4289]
[1758637001099,0.3253,4193.9,4193.0,0.1302]
[1758637001100,0.42891,4193.7,4193.0,0.1302]
[1758637001311,0.3253,4193.7,4193.1,1.07244]
[1758637001504,0.1241,4194.0,4193.0,0.4404]
[1758637001505,0.55298,4194.0,4193.2,1.07241]
[1758637001708,0.3253,4193.9,4193.7,0.42891]
[1758637001904,0.4289,4193.9,4193.7,0.42891]
[1758637002104,0.3253,4193.7,4193.5,0.42892]
[1758637002407,1.19593,4195.5,4193.6,0.3102]
[1758637002712,0.3253,4194.9,4194.8,0.42879]
[1758637002909,0.3253,4195.4,4194.8,0.3102]
[1758637003113,0.3253,4194.9,4194.7,0.42881]
[1758637003309,0.3253,4195.0,4194.9,0.42879]
[1758637003514,0.3253,4195.0,4194.9,0.73899]
[1758637003714,0.1241,4195.5,4195.4,0.42874]
[1758637003915,0.87813,4195.5,4195.2,0.42875]
[1758637004115,0.75404,4195.4,4195.3,0.42875]
[1758637004412,0.75406,4195.3,4195.1,0.73896]
[1758637004615,0.3253,4195.3,4195.2,0.3102]
[1758637004917,0.3253,4195.6,4195.5,0.42872]
[1758637006214,0.3253,4195.6,4195.5,0.73892]
[1758637006517,0.3253,4195.7,4195.6,0.42871]
[1758637006815,1.31964,4196.3,4195.8,0.42869]
[1758637006816,0.42868,4196.0,4195.8,0.42869]
[1758637007018,0.4494,4196.0,4195.1,0.3102]
[1758637007220,0.42871,4195.7,4195.3,0.42874]
[1758637007406,0.3253,4195.4,4194.7,0.3102]
[1758637007606,0.3253,4194.8,4194.2,0.3102]
[1758637007822,0.3253,4194.5,4194.4,0.42883]
[1758637008411,0.3253,4194.5,4194.4,0.73903]
[1758637008613,0.3253,4195.1,4194.8,0.42879]
[1758637008913,0.42879,4194.9,4194.7,0.42881]
[1758637009117,0.75409,4194.9,4194.7,0.73901]
[1758637009318,0.3253,4194.8,4194.7,0.73901]
[1758637009615,0.42874,4195.4,4194.7,0.3102]
[1758637009913,0.42877,4195.1,4194.9,0.42878]
[1758637010114,0.42875,4195.3,4195.0,0.73897]
[1758637010312,0.75405,4195.3,4194.6,0.3102]
[1758637010514,0.42874,4195.4,4194.6,0.3102]
[1758637010714,0.42875,4195.3,4195.2,0.3102]
[1758637010919,0.42875,4195.3,4195.1,0.42877]
[1758637011109,0.3253,4195.2,4195.1,0.42877]
[1758637011316,0.42874,4195.4,4195.1,0.3102]
[1758637011520,0.42878,4195.0,4194.8,0.4288]
[1758637011820,0.3253,4194.9,4194.8,0.739]
[1758637012016,0.5533,4195.5,4194.6,0.73902]
[1758637012216,0.3253,4194.9,4194.5,0.1302]
[1758637012418,0.3253,4194.9,4194.8,0.739]
[1758637012718,0.42881,4194.7,4194.5,0.1302]
[1758637013020,0.3253,4194.4,4194.3,0.3102]
[1758637015023,0.73903,4194.6,4194.3,0.42885]
[1758637015220,0.3102,4194.6,4194.3,0.42884]
[1758637015422,0.73902,4194.6,4194.4,0.3128]
[1758637015625,0.42882,4194.6,4194.4,0.3128]
[1758637015822,0.3102,4194.5,4194.4,0.3128]
[1758637016225,0.73905,4194.3,4194.2,0.3128]
[1758637016422,0.3102,4194.3,4194.2,0.74166]
[1758637016723,0.4343,4195.0,4194.8,0.4288]
[1758637016926,0.73899,4194.9,4194.8,0.3128]
[1758637017326,0.73899,4194.9,4194.8,0.7416]
[1758637017727,0.4288,4194.8,4194.6,0.42882]
[1758637018025,0.3102,4194.6,4194.5,0.42883]
[1758637018220,0.3102,4194.6,4194.5,0.74163]
[1758637018419,0.3102,4194.6,4194.0,1.1957]
[1758637018420,0.42881,4194.7,4194.6,0.42882]
[1758637018620,0.42881,4194.7,4194.6,0.74162]
[1758637018818,0.73901,4194.7,4194.6,0.3128]
[1758637019018,0.3102,4194.6,4194.3,0.3128]
[1758637019223,0.42882,4194.6,4194.3,0.42884]
[1758637019428,0.3102,4194.5,4194.4,0.42884]
[1758637019821,0.3102,4194.5,4194.4,0.74164]
[1758637020121,0.124,4195.0,4194.4,0.3128]
[1758637020320,0.4288,4194.8,4194.7,0.42881]
[1758637020523,0.42883,4194.5,4194.3,0.3128]
[1758637020732,0.42883,4194.5,4194.3,0.42885]
[1758637020923,0.42882,4194.7,4194.1,0.3128]
[1758637021221,0.124,4195.0,4194.3,1.07213]
[1758637021424,0.83231975,4194.9,4194.8,0.7416]
[1758637021729,0.86303,4195.5,4195.4,0.42874]
[1758637021927,0.42876,4195.2,4195.0,0.42878]
[1758637022132,0.73897,4195.1,4195.0,0.74158]
[1758637022522,0.1241,4195.5,4195.0,0.3128]
[1758637022723,0.52203714,4195.4,4195.3,0.74155]
[1758637022917,0.7389,4195.8,4195.7,0.74151]
[1758637023128,0.83217669,4195.8,4195.7,0.74151]
[1758637023325,0.52197669,4195.8,4195.7,0.74151]
[1758637023527,0.42869,4195.9,4195.8,0.3128]
[1758637023823,0.3102,4196.1,4196.0,0.3128]
[1758637024028,0.95074861,4196.1,4196.0,0.74147]
[1758637024331,0.52207861,4196.1,4196.0,0.74147]
[1758637024828,0.4343,4196.5,4195.7,0.3128]
[1758637025030,0.5219626,4196.4,4196.3,0.74144]
[1758637025421,0.3102,4196.9,4196.6,0.42861]